bitfinex/quotes_SOLUSD_20241220
["timestamp","ask_amount","ask_price","bid_price","bid_amount"]
[1734695180215,44.36718114,178.11,177.92,0.84254074]
[1734695180216,44.36718114,177.99,177.92,0.84254074]
[1734695180521,44.36718114,177.99,177.92,0.84263028]
[1734695180743,44.36718114,178.01,177.92,0.84263028]
[1734695180949,84.39153861,178.2,177.95,44.36718114]
[1734695180950,44.36718114,178.07,177.95,44.36718114]
[1734695181126,44.36718114,178.11,178.0,0.12549]
[1734695181450,44.36718114,178.03,178.0,0.84212057]
[1734695181664,44.36718114,178.01,177.91,44.36718114]
[1734695181817,44.36718114,177.97,177.87,0.84264852]
[1734695182033,44.36718114,178.01,177.89,44.36718114]
[1734695182219,44.36718114,178.01,177.9,0.84256897]
[1734695182519,44.36718114,177.99,177.9,0.84256897]
[1734695182721,44.36718114,178.03,177.91,58.41918114]
[1734695182943,44.36718114,178.03,177.92,0.84249133]
[1734695183126,44.36718114,178.01,177.92,0.84249133]
[1734695184018,44.36718114,178.02,177.88,0.84268619]
[1734695184225,44.36718114,177.93,177.84,0.84278561]
[1734695184552,44.36718114,177.93,177.71,28.00338061]
[1734695184553,44.36718114,177.87,177.8,0.84304183]
[1734695184721,44.36718114,177.91,177.8,0.84304183]
[1734695184920,44.36718114,178.02,177.9,44.36718114]
[1734695185131,44.36718114,177.96,177.86,44.36718114]
[1734695185368,44.36718114,177.96,177.87,0.84292665]
[1734695185648,44.36718114,178.02,177.82,0.84272348]
[1734695185850,44.36718114,177.91,177.82,0.84272348]
[1734695186017,44.36718114,177.93,177.83,44.36718114]
[1734695186219,44.36718114,177.93,177.84,0.84301584]
[1734695186443,44.36718114,177.97,177.85,44.36718114]
[1734695186750,44.36718114,177.95,177.86,0.84282366]
[1734695186918,44.36718114,177.97,177.88,20.0]
[1734695187114,44.36718114,177.93,177.86,0.84282366]
[1734695187343,44.36718114,177.88,177.76,0.84303485]
[1734695187521,44.36718114,177.78,177.68,0.84347439]
[1734695187730,44.36718114,177.74,177.64,44.36718114]
[1734695187947,44.36718114,177.74,177.62,0.84369108]
[1734695187948,44.36718114,177.72,177.65,0.84392751]
[1734695188145,23.902374,177.82,177.54,14.0807]
[1734695188352,44.36718114,177.73,177.6,44.36718114]
[1734695188565,44.36718114,177.75,177.64,44.36718114]
[1734695188869,44.36718114,177.85,177.74,44.36718114]
[1734695189031,44.36718114,177.83,177.75,0.84346068]
[1734695189230,44.36718114,177.79,177.68,44.36718114]
[1734695189458,44.36718114,177.79,177.69,0.84373411]
[1734695189831,44.36718114,177.77,177.69,45.21089323]
[1734695190036,44.36718114,177.78,177.67,44.36718114]
[1734695190366,44.36718114,177.8,177.69,44.36718114]
[1734695190534,38.1733,178.0,177.77,44.36718114]
[1734695190730,44.36718114,177.92,177.81,44.36718114]
[1734695191042,44.36718114,177.9,177.82,20.8431953]
[1734695191244,44.36718114,177.92,177.84,20.0]
[1734695191451,44.36718114,177.94,177.84,20.0]
[1734695191774,22.2186,178.0,177.84,20.0]
[1734695191930,44.36718114,177.92,177.85,20.0]
[1734695192132,44.36718114,177.92,177.75,44.36718114]
[1734695192133,44.36718114,177.9,177.83,20.0]
[1734695192432,44.36718114,177.88,177.83,20.0]
[1734695192633,44.36718114,177.88,177.78,0.84335008]
[1734695192860,44.36718114,177.93,177.76,0.84337977]
[1734695193034,44.36718114,177.93,177.7,22.515588]
[1734695193035,44.36718114,177.79,177.7,22.515588]
[1734695193236,44.36718114,177.81,177.7,0.84374024]
[1734695193457,44.36718114,177.93,177.71,45.21093321]
[1734695193458,44.36718114,177.83,177.71,45.21093321]
[1734695193667,44.36718114,177.87,177.76,0.12549]
[1734695193969,44.36718114,177.89,177.78,0.12549]
[1734695194141,72.1371,177.99,177.78,0.12549]
[1734695194142,44.36718114,177.91,177.81,44.36718114]
[1734695194342,44.36718114,177.93,177.83,44.36718114]
[1734695194538,44.36718114,178.0,177.9,0.12549]
[1734695194753,44.36718114,178.02,177.92,0.12549]
[1734695194957,44.36718114,178.02,177.94,20.0]
[1734695195170,44.36718114,178.03,177.96,20.0]
[1734695195370,44.36718114,178.05,177.96,20.0]
[1734695195575,44.36718114,178.05,177.97,0.84271022]
[1734695195783,44.36718114,178.07,178.0,0.12549]
[1734695195955,44.36718114,178.09,178.01,20.0]
[1734695196268,44.36718114,178.11,178.03,20.0]
[1734695196667,44.36718114,178.11,178.04,0.12549]
[1734695196874,44.36718114,178.15,178.08,0.12549]
[1734695197245,22.246,178.25,178.09,20.0]
[1734695197246,44.36718114,178.17,178.09,20.0]
[1734695197765,44.36718114,178.19,178.11,20.0]
[1734695197947,44.36718114,178.21,178.12,0.12549]
[1734695198148,44.36718114,178.26,178.18,20.0]
[1734695198384,1.3585408,178.39,178.13,44.36718114]
[1734695198655,44.36718114,178.33,178.26,20.0]
[1734695198847,1.3585408,178.39,178.3,20.0]
[1734695199046,45.72572194,178.39,178.33,0.12549]
[1734695199365,1.3585408,178.39,178.32,20.84080272]
[1734695199747,44.36718114,178.38,178.33,0.12549]
[1734695200147,1.3585408,178.39,178.33,0.12549]
[1734695200344,1.3585408,178.39,178.2,44.36718114]
[1734695200345,44.36718114,178.38,178.3,0.84079658]
[1734695200568,44.36718114,178.34,178.23,44.36718114]
[1734695200858,44.36718114,178.32,178.24,0.84113228]
[1734695201162,44.36718114,178.34,178.25,44.36718114]
[1734695201342,44.36718114,178.36,178.27,0.12549]
[1734695201541,1.3585408,178.39,178.29,44.49267114]
[1734695201751,44.36718114,178.36,178.3,0.8407993]
[1734695201951,1.3585408,178.39,178.31,0.12549]
[1734695202172,1.3585408,178.39,178.32,0.84076518]
[1734695202372,44.36718114,178.36,178.32,0.84077159]
[1734695202547,44.36718114,178.38,178.3,20.84086278]
[1734695202749,1.3585408,178.39,178.34,20.0]
[1734695202965,1.3585408,178.39,178.35,0.12549]
[1734695203273,1.3585408,178.39,178.35,0.96619394]
[1734695203478,1.3585408,178.39,178.38,0.12549]
[1734695203679,1.3585408,178.39,178.38,20.12549]
[1734695203879,1.3585408,178.39,178.3,0.84060571]
[1734695204072,44.36718114,178.31,178.24,0.84085577]
[1734695204245,44.36718114,178.31,178.06,28.62372817]
[1734695204246,44.36718114,178.25,178.15,44.36718114]
[1734695204442,0.12549,178.38,178.11,44.36718114]
[1734695204443,44.36718114,178.21,178.11,44.36718114]
[1734695204658,44.36718114,178.19,178.09,44.36718114]
[1734695204861,44.36718114,178.19,178.11,44.36718114]
[1734695205063,44.36718114,178.23,178.13,44.36718114]
[1734695205380,44.36718114,178.23,178.12,0.84175056]
[1734695205381,44.36718114,178.19,178.12,0.84175056]
[1734695205562,44.36718114,178.29,178.12,0.84175056]
[1734695205563,44.36718114,178.21,178.12,0.84175056]
[1734695206174,44.36718114,178.29,178.19,44.36718114]
[1734695206478,44.36718114,178.37,178.28,0.12549]
[1734695206653,45.72572194,178.39,178.3,0.12549]
[1734695206986,44.36718114,178.31,178.24,22.456306]
[1734695207148,44.36718114,178.31,178.11,44.36718114]
[1734695207149,44.36718114,178.26,178.18,20.0]
[1734695207473,44.36718114,178.28,178.22,20.0]
[1734695207644,44.36718114,178.3,178.22,20.0]
[1734695207844,44.36718114,178.3,178.22,20.8413675]
[1734695208044,44.36718114,178.24,178.19,22.463224]
[1734695208273,44.36718114,178.22,178.19,22.463224]
[1734695208460,44.36718114,178.24,178.19,22.463224]
[1734695208655,44.36718114,178.26,178.15,44.49267114]
[1734695208861,44.36718114,178.32,178.22,0.12549]
[1734695209072,44.36718114,178.32,178.22,0.96678188]
[1734695209276,45.32592834,178.32,178.22,0.96678188]
[1734695209478,44.36718114,178.27,178.18,20.0]
[1734695209773,44.36718114,178.25,178.16,0.84114111]
[1734695209973,44.36718114,178.29,178.18,0.12549]
[1734695210176,44.36718114,178.29,178.18,0.84143066]
[1734695210470,0.9587472,178.32,178.23,44.36718114]
[1734695210660,0.9587472,178.32,178.25,44.36718114]
[1734695210846,0.9587472,178.32,178.26,0.84089494]
[1734695211047,0.9587472,178.32,178.28,20.0]
[1734695211275,44.36718114,178.3,178.21,0.84103927]
[1734695211580,45.32592834,178.32,178.22,20.0]
[1734695211876,0.9587472,178.32,178.26,20.0]
[1734695212176,0.9587472,178.32,178.31,0.12549]
[1734695212483,4.72e-05,178.32,178.31,99.1835]
[1734695212645,4.72e-05,178.32,178.31,20.12549]
[1734695212845,4.72e-05,178.32,178.23,44.36718114]
[1734695213071,44.36718114,178.29,178.24,0.84116839]
[1734695213370,44.36718114,178.27,178.19,0.84125777]
[1734695213670,4.72e-05,178.32,178.23,44.36718114]
[1734695213872,4.72e-05,178.32,178.24,0.96652758]
[1734695214478,4.72e-05,178.32,178.25,44.36718114]
[1734695214675,4.72e-05,178.32,178.29,44.49267114]
[1734695214851,4.72e-05,178.32,178.3,20.84072992]
[1734695215057,4.72e-05,178.32,178.31,20.12549]
[1734695215660,4.72e-05,178.32,178.29,44.36718114]
[1734695215861,44.36718114,178.46,178.32,0.12549]
[1734695216185,44.36718114,178.5,178.41,0.12549]
[1734695216373,44.36718114,178.43,178.41,0.84025193]
[1734695216672,44.36718114,178.43,178.3,14.0207]
[1734695216673,44.36718114,178.45,178.36,0.12549]
[1734695216860,44.36718114,178.45,178.36,0.96596649]
[1734695217074,44.36718114,178.45,178.36,0.84047649]
[1734695217568,44.36718114,178.39,178.34,0.8405267]
[1734695217763,44.36718114,178.43,178.33,44.36718114]
[1734695218073,44.36718114,178.47,178.38,0.12549]
[1734695218374,44.36718114,178.45,178.38,0.84043811]
[1734695218968,44.36718114,178.45,178.36,0.84060774]
[1734695219167,44.36718114,178.45,178.37,0.12549]
[1734695219472,44.36718114,178.47,178.39,0.12549]
[1734695219682,44.36718114,178.47,178.41,0.12549]
[1734695219869,44.36718114,178.47,178.33,44.36718114]
[1734695219870,44.36718114,178.43,178.33,44.36718114]
[1734695220071,44.36718114,178.43,178.34,0.84064119]
[1734695220271,1.2220218,178.55,178.34,0.84064119]
[1734695220272,44.36718114,178.45,178.35,0.12549]
[1734695220479,44.36718114,178.43,178.38,20.0]
[1734695220665,44.36718114,178.41,178.38,20.0]
[1734695220986,44.36718114,178.39,178.25,0.84072368]
[1734695221166,44.36718114,178.34,178.25,0.84072368]
[1734695221654,44.36718114,178.36,178.26,0.12549]
[1734695221980,14.0105,178.44,178.23,45.20810233]
[1734695221981,44.36718114,178.32,178.23,45.20810233]
[1734695222182,44.36718114,178.36,178.26,44.36718114]
[1734695222367,44.36718114,178.38,178.28,44.49267114]
[1734695222552,44.36718114,178.44,178.35,0.12549]
[1734695222753,44.36718114,178.46,178.37,0.12549]
[1734695222995,44.36718114,178.4,178.31,45.20764356]
[1734695223287,44.36718114,178.34,178.25,0.84076632]
[1734695223870,44.36718114,178.36,178.25,45.20794746]
[1734695224057,44.36718114,178.42,178.31,44.36718114]
[1734695224256,44.36718114,178.42,178.27,33.85]
[1734695224257,44.36718114,178.46,178.36,0.12549]
[1734695224554,44.36718114,178.48,178.38,0.12549]
[1734695224759,44.36718114,178.46,178.4,20.0]
[1734695225185,44.36718114,178.5,178.42,20.12549]
[1734695225364,44.36718114,178.54,178.47,0.12549]
[1734695225679,44.36718114,178.58,178.48,20.0]
[1734695225870,44.36718114,178.58,178.52,20.0]
[1734695226050,44.36718114,178.6,178.52,20.0]
[1734695226252,44.36718114,178.6,178.49,45.20699862]
[1734695226253,44.36718114,178.6,178.54,20.12549]
[1734695226478,44.36718114,178.62,178.54,20.12549]
[1734695226658,1.0966218,178.55,178.54,20.12549]
[1734695226866,2.18e-05,178.55,178.54,20.12549]
[1734695228081,44.36718114,178.7,178.57,0.12549]
[1734695228377,44.36718114,178.7,178.65,0.12549]
[1734695228589,44.36718114,178.68,178.64,20.83927381]
[1734695228768,44.36718114,178.66,178.59,0.83947463]
[1734695229083,44.36718114,178.67,178.59,0.83947463]
[1734695229261,44.36718114,178.67,178.6,20.0]
[1734695229658,1.2220218,178.87,178.61,45.33215127]
[1734695229858,44.36718114,178.74,178.64,0.12549]
[1734695230169,44.36718114,178.74,178.64,0.96460861]
[1734695230488,44.36718114,178.76,178.66,0.12549]
[1734695230668,44.36718114,178.67,178.66,0.83897179]
[1734695230860,44.36718114,178.67,178.54,44.36718114]
[1734695231180,44.36718114,178.6,178.49,44.36718114]
[1734695231368,44.36718114,178.62,178.51,44.36718114]
[1734695231679,44.36718114,178.64,178.53,44.36718114]
[1734695231882,44.36718114,178.64,178.54,0.83959107]
[1734695232090,44.36718114,178.62,178.54,0.83959107]
[1734695232383,44.36718114,178.64,178.55,0.12549]
[1734695232572,44.36718114,178.69,178.57,44.49267114]
[1734695232775,44.36718114,178.69,178.6,0.12549]
[1734695232968,44.36718114,178.71,178.62,0.12549]
[1734695233280,44.36718114,178.71,178.62,0.96473225]
[1734695233493,44.36718114,178.67,178.62,0.96473225]
[1734695233684,44.36718114,178.65,178.57,0.83950034]
[1734695233869,44.36718114,178.65,178.58,0.12549]
[1734695234068,44.36718114,178.59,178.5,44.36718114]
[1734695234286,44.36718114,178.55,178.45,44.36718114]
[1734695234490,44.36718114,178.55,178.46,0.84000593]
[1734695234797,44.36718114,178.65,178.54,44.36718114]
[1734695235088,44.36718114,178.61,178.51,44.36718114]
[1734695235271,44.36718114,178.57,178.47,45.20675459]
[1734695235596,44.36718114,178.59,178.49,44.36718114]
[1734695235886,44.36718114,178.59,178.5,0.12549]
[1734695236088,44.36718114,178.57,178.43,0.83979817]
[1734695236390,44.36718114,178.49,178.43,0.83979817]
[1734695236596,44.36718114,178.56,178.4,0.84034864]
[1734695236597,44.36718114,178.44,178.4,0.84034864]
[1734695236772,44.36718114,178.47,178.34,0.84034864]
[1734695236773,44.36718114,178.42,178.34,0.84034864]
[1734695237138,44.36718114,178.4,178.32,0.84066993]
[1734695237469,44.36718114,178.38,178.32,0.84066993]
[1734695237794,44.36718114,178.42,178.32,0.84066993]
[1734695237964,44.36718114,178.38,178.33,0.84064715]
[1734695238166,44.36718114,178.38,178.29,0.84079209]
[1734695238367,44.36718114,178.4,178.29,0.84079209]
[1734695238596,44.36718114,178.38,178.29,0.84079209]
[1734695238892,44.36718114,178.3,178.23,0.84084254]
[1734695239095,44.36718114,178.3,178.19,0.84122778]
[1734695239096,44.36718114,178.25,178.19,0.84122778]
[1734695239393,44.36718114,178.27,178.18,44.36718114]
[1734695239579,44.36718114,178.31,178.2,44.36718114]
[1734695239777,44.36718114,178.33,178.22,44.36718114]
[1734695240087,44.36718114,178.29,178.23,0.84109177]
[1734695240288,44.36718114,178.27,178.19,0.8413104]
[1734695240671,58.38248114,178.38,178.19,0.8413104]
[1734695240672,44.36718114,178.29,178.19,0.8413104]
[1734695241079,44.36718114,178.23,178.19,0.8413104]
[1734695241378,44.36718114,178.23,178.16,0.84147546]
[1734695241575,44.36718114,178.27,178.18,44.36718114]
[1734695241876,44.36718114,178.27,178.19,0.84127465]
[1734695242795,44.36718114,178.27,178.11,44.36718114]
[1734695242796,44.36718114,178.21,178.11,22.464874]
[1734695243099,44.36718114,178.19,178.08,44.36718114]
[1734695243299,44.36718114,178.21,178.12,44.36718114]
[1734695243477,44.36718114,178.23,178.13,0.84165055]
[1734695243673,44.36718114,178.23,178.14,44.49267114]
[1734695243886,44.36718114,178.25,178.15,0.84158166]
[1734695244082,44.36718114,178.36,178.24,44.36718114]
[1734695244286,281.44860977,178.5,178.2,44.36718114]
[1734695244287,42.5597,178.52,178.26,44.36718114]
[1734695244504,44.36718114,178.29,178.21,0.84092525]
[1734695244690,44.36718114,178.29,178.19,45.20850416]
[1734695244880,44.36718114,178.25,178.16,0.84131743]
[1734695245079,44.36718114,178.25,178.15,44.36718114]
[1734695245376,44.36718114,178.27,178.17,44.36718114]
[1734695245578,44.36718114,178.29,178.2,0.12549]
[1734695245776,44.36718114,178.33,178.23,44.36718114]
[1734695245983,44.36718114,178.29,178.22,0.12549]
[1734695246298,44.36718114,178.25,178.15,44.36718114]
[1734695246499,44.36718114,178.29,178.12,23.30406942]
[1734695246500,44.36718114,178.19,178.12,22.462703]
[1734695246997,44.36718114,178.27,178.17,44.36718114]
[1734695247299,44.36718114,178.27,178.11,58.40338114]
[1734695247300,44.36718114,178.35,178.24,44.36718114]
[1734695247499,44.36718114,178.39,178.3,44.36718114]
[1734695247679,44.36718114,178.45,178.34,44.36718114]
[1734695247877,44.36718114,178.47,178.37,0.12549]
[1734695248077,44.36718114,178.45,178.37,0.8404574]
[1734695248297,14.0019,178.55,178.32,44.36718114]
[1734695248298,44.36718114,178.43,178.32,44.36718114]
[1734695248499,44.36718114,178.35,178.26,0.84055457]
[1734695248701,44.36718114,178.29,178.21,0.8410544]
[1734695248877,44.36718114,178.29,178.19,45.20857516]
[1734695249205,44.36718114,178.27,178.17,44.36718114]
[1734695249682,44.36718114,178.29,178.19,44.36718114]
[1734695250287,23.776884,178.4,178.19,44.36718114]
[1734695250491,23.776884,178.4,178.12,14.87662481]
[1734695250492,44.36718114,178.27,178.17,44.36718114]
[1734695250998,44.36718114,178.22,178.12,0.84142481]
[1734695251205,44.36718114,178.22,178.12,45.20860595]
[1734695251375,44.36718114,178.24,178.14,44.36718114]
[1734695252018,7.4977,178.39,178.21,44.36718114]
[1734695252309,44.36718114,178.37,178.27,44.36718114]
[1734695252508,44.36718114,178.33,178.23,44.36718114]
[1734695252873,44.36718114,178.27,178.17,44.36718114]
[1734695253100,44.36718114,178.21,178.12,0.84150069]
[1734695253306,44.36718114,178.23,178.13,44.36718114]
[1734695253611,44.36718114,178.27,178.18,0.12549]
[1734695253901,30.0,178.39,178.13,45.20872935]
[1734695254107,56.0348,178.46,178.13,45.20872935]
[1734695254108,44.36718114,178.28,178.17,44.36718114]
[1734695254400,44.36718114,178.38,178.17,44.36718114]
[1734695254401,44.36718114,178.26,178.19,0.12549]
[1734695254613,44.36718114,178.26,178.15,45.20852116]
[1734695254785,44.36718114,178.22,178.13,44.36718114]
[1734695254985,44.36718114,178.22,178.11,44.36718114]
[1734695255200,44.36718114,178.22,178.07,22.469911]
[1734695255201,44.36718114,178.22,178.13,44.36718114]
[1734695255412,44.36718114,178.24,178.15,44.36718114]
[1734695255601,44.36718114,178.29,178.09,44.36718114]
[1734695255602,44.36718114,178.18,178.09,44.36718114]
[1734695256115,44.36718114,178.2,178.1,0.84185913]
[1734695256516,44.36718114,178.2,177.97,7.5759]
[1734695256517,44.36718114,178.12,177.99,44.36718114]
[1734695256689,44.36718114,178.04,177.95,44.36718114]
[1734695256891,44.36718114,178.04,177.93,44.36718114]
[1734695257125,44.36718114,178.04,177.89,35.539223]
[1734695257126,44.36718114,178.06,177.97,44.36718114]
[1734695257334,44.36718114,178.08,177.97,44.36718114]
[1734695257502,44.36718114,178.1,178.02,0.12549]
[1734695257696,44.36718114,178.1,178.01,44.36718114]
[1734695257915,44.36718114,178.08,177.99,44.36718114]
[1734695258119,44.36718114,178.08,177.95,0.84220975]
[1734695258120,44.36718114,178.04,177.95,44.36718114]
[1734695258626,14.0305,178.19,177.96,45.20972574]
[1734695258922,44.36718114,178.08,177.98,44.36718114]
[1734695259124,44.36718114,178.04,177.94,45.20964547]
[1734695259325,44.36718114,178.11,177.88,44.36718114]
[1734695259326,44.36718114,177.98,177.88,44.36718114]
[1734695259499,44.36718114,178.0,177.9,44.36718114]
[1734695260108,44.36718114,178.0,177.91,0.12549]
[1734695260312,44.36718114,178.04,177.94,44.36718114]
[1734695260698,44.36718114,178.06,177.98,44.36718114]
[1734695260906,44.36718114,178.06,177.96,44.36718114]
[1734695261099,44.36718114,178.11,177.89,45.20972833]
[1734695261100,44.36718114,177.99,177.89,45.20972833]
[1734695261304,44.36718114,177.96,177.87,44.36718114]
[1734695261508,44.36718114,177.96,177.85,44.36718114]
[1734695262004,44.36718114,177.92,177.82,44.36718114]
[1734695262227,44.36718114,177.94,177.86,44.36718114]
[1734695262422,44.36718114,177.96,177.87,0.84312506]
[1734695262609,44.36718114,177.96,177.86,44.36718114]
[1734695262932,44.36718114,177.94,177.84,44.36718114]
[1734695263230,44.36718114,177.9,177.8,44.36718114]
[1734695263404,44.36718114,177.88,177.78,45.2102398]
[1734695263807,44.36718114,177.9,177.8,44.36718114]
[1734695264113,26.76549,178.01,177.78,0.84305866]
[1734695264114,44.36718114,177.94,177.84,44.36718114]
[1734695264633,44.36718114,177.9,177.8,44.36718114]
[1734695264936,30.0,177.99,177.83,44.36718114]
[1734695265121,44.36718114,177.94,177.83,44.36718114]
[1734695265443,44.36718114,177.92,177.83,44.36718114]
[1734695265805,44.36718114,177.94,177.83,44.36718114]
[1734695266130,44.36718114,177.92,177.81,44.36718114]
[1734695266502,44.36718114,177.9,177.79,44.36718114]
[1734695266710,44.36718114,177.82,177.77,1.2220218]
[1734695266937,44.36718114,177.8,177.77,1.2220218]
[1734695267609,13.2156,177.89,177.77,1.2220218]
[1734695267610,44.36718114,177.82,177.77,1.2220218]
[1734695267923,13.2156,177.89,177.73,0.1779152]
[1734695267924,44.36718114,177.78,177.73,0.1779152]
[1734695268238,44.36718114,177.82,177.73,0.1779152]
[1734695268435,44.36718114,177.8,177.73,0.1779152]
[1734695269109,44.36718114,177.86,177.75,44.36718114]
[1734695269332,44.36718114,177.86,177.77,44.36718114]
[1734695269517,44.36718114,177.88,177.77,44.36718114]
[1734695269922,44.36718114,177.82,177.73,0.1779152]
[1734695270107,44.36718114,177.76,177.73,0.1779152]
[1734695270432,44.36718114,177.76,177.59,14.0768]
[1734695270433,44.36718114,177.74,177.63,44.36718114]
[1734695270838,14.0555,177.87,177.71,44.36718114]
[1734695270839,44.36718114,177.8,177.71,44.36718114]
[1734695271048,44.36718114,177.86,177.75,44.36718114]
[1734695271216,44.36718114,177.86,177.77,44.36718114]
[1734695271412,44.36718114,177.84,177.73,44.36718114]
[1734695271649,44.36718114,177.82,177.73,44.36718114]
[1734695272016,44.36718114,177.8,177.71,44.36718114]
[1734695272438,44.36718114,177.76,177.67,44.36718114]
[1734695272617,44.36718114,177.8,177.69,44.36718114]
[1734695272818,44.36718114,177.8,177.71,44.36718114]
[1734695273050,44.36718114,177.8,177.69,44.36718114]
[1734695273430,44.36718114,177.8,177.71,44.36718114]
[1734695273752,44.36718114,177.84,177.75,44.36718114]
[1734695273965,44.36718114,177.84,177.67,0.96937667]
[1734695274252,44.36718114,177.84,177.63,14.0741]
[1734695274253,44.36718114,177.78,177.68,44.36718114]
[1734695274452,44.36718114,177.84,177.59,14.0767]
[1734695274453,44.36718114,177.72,177.64,44.36718114]
[1734695274618,44.36718114,177.68,177.58,44.36718114]
[1734695274817,44.36718114,177.66,177.58,44.36718114]
[1734695275042,44.36718114,177.68,177.58,44.36718114]
[1734695275360,44.36718114,177.66,177.56,44.36718114]
[1734695275536,44.36718114,177.72,177.62,44.36718114]
[1734695275721,44.36718114,177.68,177.58,44.36718114]
[1734695276121,44.36718114,177.66,177.58,44.36718114]
[1734695276322,44.36718114,177.66,177.56,44.36718114]
[1734695276644,44.36718114,177.64,177.56,44.36718114]
[1734695276857,44.36718114,177.64,177.47,27.2264024]
[1734695276858,44.36718114,177.62,177.52,44.36718114]
[1734695277162,44.36718114,177.56,177.47,1.0159024]
[1734695277366,44.36718114,177.56,177.48,44.36718114]
[1734695277557,44.36718114,177.58,177.48,44.36718114]
[1734695278125,44.36718114,177.56,177.47,1.0159024]
[1734695278356,44.36718114,177.58,177.48,44.36718114]
[1734695278556,44.36718114,177.64,177.54,44.36718114]
[1734695278761,44.36718114,177.62,177.52,44.36718114]
[1734695278944,44.36718114,177.66,177.48,44.36718114]
[1734695278945,44.36718114,177.58,177.48,44.36718114]
[1734695279147,44.36718114,177.56,177.47,1.0159024]
[1734695279739,44.36718114,177.58,177.48,44.36718114]
[1734695279945,44.36718114,177.56,177.47,1.0159024]
[1734695280362,30.0,177.6,177.47,1.0159024]
[1734695280363,44.36718114,177.54,177.47,1.0159024]
[1734695280669,44.36718114,177.48,177.36,44.36718114]
[1734695280835,44.36718114,177.47,177.36,44.36718114]
[1734695281039,44.36718114,177.47,177.38,44.36718114]
[1734695281368,44.36718114,177.55,177.44,44.36718114]
[1734695281535,12.1083,177.58,177.44,44.36718114]
[1734695281536,44.36718114,177.53,177.44,44.36718114]
[1734695281739,44.36718114,177.49,177.4,44.36718114]
[1734695282063,44.36718114,177.53,177.42,44.36718114]
[1734695282370,44.36718114,177.47,177.38,44.36718114]
[1734695282570,44.36718114,177.43,177.34,44.36718114]
[1734695282778,44.36718114,177.39,177.28,44.36718114]
[1734695283565,44.36718114,177.41,177.3,44.36718114]
[1734695283742,44.36718114,177.43,177.32,44.36718114]
[1734695283949,44.36718114,177.44,177.34,44.36718114]
[1734695284148,12.1083,177.58,177.3,44.36718114]
[1734695284149,44.36718114,177.5,177.4,44.36718114]
[1734695284370,44.36718114,177.54,177.39,44.36718114]
[1734695284662,44.36718114,177.66,177.4,0.97076091]
[1734695284663,74.36718114,177.66,177.4,0.97076091]
[1734695284976,44.36718114,177.63,177.53,44.36718114]
[1734695285137,12.1646,177.68,177.4,0.97076091]
[1734695285138,44.36718114,177.57,177.49,44.36718114]
[1734695285464,44.36718114,177.57,177.46,44.36718114]
[1734695285762,44.36718114,177.57,177.4,0.84527091]
[1734695285763,44.36718114,177.59,177.48,44.36718114]
[1734695285985,44.36718114,177.59,177.5,44.36718114]
[1734695286349,44.36718114,177.63,177.52,44.36718114]
[1734695286867,44.36718114,177.67,177.56,44.36718114]
[1734695287066,44.36718114,177.59,177.5,44.36718114]
[1734695287256,44.36718114,177.59,177.48,44.36718114]
[1734695287670,44.36718114,177.55,177.46,44.36718114]
[1734695287845,44.36718114,177.51,177.42,44.36718114]
[1734695288047,44.36718114,177.45,177.36,44.36718114]
[1734695288288,44.36718114,177.39,177.29,44.36718114]
[1734695288652,44.36718114,177.41,177.31,44.36718114]
[1734695288848,44.36718114,177.39,177.29,44.36718114]
[1734695289048,44.36718114,177.35,177.25,44.36718114]
[1734695289251,44.36718114,177.31,177.21,44.36718114]
[1734695289479,44.36718114,177.29,177.2,1.0159024]
[1734695289706,44.36718114,177.25,177.2,1.0159024]
[1734695289843,44.36718114,177.3,177.2,1.0159024]
[1734695289844,44.36718114,177.23,177.2,1.0159024]
[1734695290049,44.36718114,177.21,177.2,1.0159024]
[1734695290794,88.73436228,177.21,176.98,14.97236659]
[1734695291098,44.36718114,177.16,177.06,44.36718114]
[1734695291388,44.36718114,177.08,176.98,44.36718114]
[1734695291546,44.36718114,177.13,176.99,0.84704826]
[1734695291753,12.9551,177.19,176.95,14.1282]
[1734695291754,44.36718114,177.11,176.95,14.1282]
[1734695291967,44.36718114,177.21,177.06,44.36718114]
[1734695291968,30.0,177.21,177.06,44.36718114]
[1734695292197,44.36718114,177.16,177.06,44.36718114]
[1734695292352,44.36718114,177.18,177.08,44.36718114]
[1734695292551,57.0571,177.28,177.1,44.36718114]
[1734695292552,44.36718114,177.2,177.1,44.36718114]
[1734695292756,44.36718114,177.18,177.07,44.36718114]
[1734695292977,44.36718114,177.24,177.13,44.36718114]
[1734695293178,44.36718114,177.28,177.19,44.36718114]
[1734695293496,44.36718114,177.34,177.25,44.36718114]
[1734695293700,44.36718114,177.38,177.3,20.0]
[1734695293904,44.36718114,177.43,177.33,44.36718114]
[1734695294515,30.0,177.49,177.38,20.0]
[1734695294688,30.0,177.54,177.46,44.36718114]
[1734695294886,7.5107,177.64,177.46,44.36718114]
[1734695294887,44.36718114,177.56,177.46,44.36718114]
[1734695295088,7.5107,177.64,177.44,44.36718114]